bitfinex/quotes_SOLUSD_20251126
["timestamp","ask_amount","ask_price","bid_price","bid_amount"]
[1764135485424,103.30526883,139.1,139.08,7.85998663]
[1764135492421,103.30526883,139.1,139.08,7.18998663]
[1764135492607,103.30526883,139.1,139.08,7.85998663]
[1764135496025,103.30526883,139.1,139.08,7.18998663]
[1764135496528,103.30526883,139.1,139.08,7.87998663]
[1764135497136,103.30526883,139.1,139.08,7.18998663]
[1764135497720,103.30526883,139.1,139.08,7.87998663]
[1764135503034,103.30526883,139.1,139.09,0.69]
[1764135505239,103.30526883,139.1,139.07,48.39576527]
[1764135505240,103.30526883,139.1,139.07,31.10988549]
[1764135505439,103.85526883,139.1,139.07,16.69014978]
[1764135505843,103.85526883,139.1,139.07,19.85214168]
[1764135506351,103.30526883,139.1,139.07,19.16214168]
[1764135506547,103.30526883,139.1,139.08,0.69]
[1764135506949,103.30526883,139.1,139.08,3.8519919]
[1764135507149,103.30526883,139.1,139.09,7.18958947]
[1764135507353,103.30526883,139.1,139.09,7.87958947]
[1764135510231,103.30526883,139.1,139.09,7.18958947]
[1764135510548,107.01726073,139.1,139.07,16.00045184]
[1764135510740,0.55,139.09,139.07,8.80994492]
[1764135510932,0.55,139.09,139.06,11.04092791]
[1764135511136,103.30526883,139.08,139.06,11.04092791]
[1764135512862,103.30526883,139.08,139.07,0.69]
[1764135513240,103.30526883,139.08,139.07,9.49994492]
[1764135514038,0.55,139.1,139.07,9.49994492]
[1764135514240,3.7119919,139.1,139.06,7.19092791]
[1764135514438,3.7119919,139.1,139.06,7.88092791]
[1764135514762,0.55,139.09,139.06,7.88092791]
[1764135515953,0.55,139.1,139.06,10.35291981]
[1764135516152,6.3219919,139.11,139.06,7.88092791]
[1764135516363,0.55,139.09,139.06,7.88092791]
[1764135518369,3.7119919,139.09,139.06,7.19092791]
[1764135518545,3.7119919,139.09,139.04,10.35169246]
[1764135518546,3.1619919,139.07,139.04,10.35169246]
[1764135518877,3.1619919,139.07,139.04,7.19169246]
[1764135519040,3.7119919,139.07,139.04,7.88169246]
[1764135520272,0.55,139.07,139.04,7.88169246]
[1764135520869,6.3219919,139.08,139.04,7.88169246]
[1764135521062,6.8719919,139.08,139.04,7.88169246]
[1764135522749,3.7119919,139.07,139.04,7.88169246]
[1764135522962,3.7119919,139.07,139.04,0.69]
[1764135523164,103.85526883,139.06,139.04,8.80994492]
[1764135523359,103.30526883,139.06,139.04,8.80994492]
[1764135523559,103.30526883,139.06,139.05,0.69]
[1764135523961,103.30526883,139.06,139.04,8.80994492]
[1764135524144,103.30526883,139.06,139.04,9.51994492]
[1764135524348,103.30526883,139.05,139.03,9.51994492]
[1764135524764,103.30526883,139.05,139.03,8.80994492]
[1764135524965,106.46726073,139.05,139.03,8.80994492]
[1764135525164,103.30526883,139.05,139.03,8.80994492]
[1764135525472,103.30526883,139.05,139.03,16.71258682]
[1764135529472,3.7119919,139.04,139.01,0.71]
[1764135529666,3.7119919,139.04,139.0,11.96994492]
[1764135529849,106.46526883,139.05,138.99,24.90820832]
[1764135529850,107.01726073,139.03,138.99,8.80994492]
[1764135530057,3.1619919,139.01,138.98,3.87]
[1764135530251,3.1619919,139.01,138.98,11.06515898]
[1764135530571,3.16,139.02,138.98,7.90515898]
[1764135530755,3.1619919,139.01,138.98,7.90515898]
[1764135531473,3.7119919,139.01,138.98,7.90515898]
[1764135532569,3.7119919,139.01,138.98,0.71]
[1764135533161,3.7119919,139.01,138.98,7.90517193]
[1764135533884,3.7119919,139.01,138.98,0.71]
[1764135534458,3.1619919,139.01,138.98,0.71]
[1764135534660,2.02750092,139.01,138.98,0.71]
[1764135535056,103.30526883,139.0,138.98,0.71]
[1764135535488,103.30526883,139.0,138.98,7.90526176]
[1764135536267,103.30526883,139.0,138.98,0.71]
[1764135536477,105.88276975,139.0,138.97,20.50105042]
[1764135536670,105.88276975,139.0,138.97,3.78547832]
[1764135536881,105.33276975,138.99,138.97,3.78547832]
[1764135537464,2.57750092,138.98,138.97,3.78547832]
[1764135537677,2.02750092,138.98,138.97,3.78547832]
[1764135538157,2.57750092,138.98,138.97,3.78547832]
[1764135538567,106.46526883,138.99,138.97,11.69122908]
[1764135538768,106.46526883,138.99,138.98,0.71]
[1764135540485,106.46526883,138.99,138.97,11.69122908]
[1764135540787,103.30526883,138.99,138.97,11.69122908]
[1764135541490,103.30526883,138.99,138.97,10.98122908]
[1764135541990,103.30526883,138.99,138.97,11.69122908]
[1764135545097,103.30526883,138.99,138.98,8.80994492]
[1764135548983,105.33276975,138.99,138.97,4.49547832]
[1764135549489,103.30526883,138.99,138.97,4.49547832]
[1764135550278,103.30526883,138.99,138.97,11.69125198]
[1764135551564,103.30526883,138.99,138.98,0.71]
[1764135551780,103.30526883,138.99,138.97,11.69125198]
[1764135552896,103.30526883,138.98,138.97,20.5011969]
[1764135553373,103.30526883,138.98,138.97,13.30542324]
[1764135553768,103.30526883,138.98,138.97,20.50122089]
[1764135557094,103.30526883,138.98,138.97,22.52872181]
[1764135558894,103.30526883,138.98,138.97,20.50122089]
[1764135559278,103.30526883,138.98,138.97,22.52872181]
[1764135560284,103.30526883,138.98,138.97,20.50122089]
[1764135560487,103.30526883,138.98,138.97,22.52872181]
[1764135571010,103.30526883,138.98,138.97,20.50122089]
[1764135571196,103.30526883,138.98,138.97,22.52872181]
[1764135572005,103.30526883,138.98,138.97,20.50122089]
[1764135572195,103.30526883,138.98,138.97,19.79122089]
[1764135572818,103.30526883,138.98,138.97,20.51122089]
[1764135573310,0.55,139.0,138.98,8.80994492]
[1764135573519,2.57750092,139.0,138.98,8.80994492]
[1764135573689,2.57750092,139.0,138.97,10.98127597]
[1764135573894,0.55,138.99,138.97,10.98127597]
[1764135575312,0.55,139.0,138.97,10.98127597]
[1764135575497,123.32413283,139.02,138.98,16.72513212]
[1764135575703,103.30526883,139.01,138.98,16.72513212]
[1764135577901,103.85526883,139.01,138.98,16.72513212]
[1764135579614,103.30526883,139.0,138.98,16.72513212]
[1764135590836,103.30526883,139.0,138.98,16.00513212]
[1764135591434,103.85526883,139.0,138.98,16.00513212]
[1764135595342,103.30526883,139.0,138.98,16.72513212]
[1764135595846,103.85526883,139.0,138.98,16.00513212]
[1764135597047,103.30526883,139.0,138.98,16.72513212]
[1764135597919,103.85526883,139.0,138.98,16.00513212]
[1764135598448,17.97713038,139.07,138.98,16.00513212]
[1764135598449,0.55,139.05,139.0,8.80994492]
[1764135598747,0.55,139.04,139.02,8.80994492]
[1764135599240,0.55,139.04,139.02,11.97791601]
[1764135599438,0.55,139.04,139.02,3.16797109]
[1764135599632,0.55,139.04,139.02,11.97791601]
[1764135600017,3.71797109,139.04,139.02,11.97791601]
[1764135600424,3.71797109,139.03,139.0,8.80994492]
[1764135600624,3.16797109,139.02,138.99,19.17251958]
[1764135600844,107.02323992,139.02,138.99,19.17251958]
[1764135601043,0.55,139.01,138.99,19.17251958]
[1764135601428,0.55,139.01,138.99,11.97791601]
[1764135602423,0.55,139.01,138.99,19.17266998]
[1764135603015,103.85526883,139.02,138.99,19.84266998]
[1764135603642,103.85526883,139.02,138.99,19.17266998]
[1764135606044,103.30526883,139.02,138.99,19.17266998]
[1764135606345,103.30526883,139.01,138.99,19.17266998]
[1764135607445,103.85526883,139.01,138.99,11.97791601]
[1764135608048,103.30526883,139.01,138.99,19.84262397]
[1764135608237,103.85526883,139.01,138.99,19.17262397]
[1764135609226,103.85526883,139.01,138.99,7.19470796]
[1764135610226,103.85526883,139.01,138.99,28.82022607]
[1764135610428,103.30526883,139.01,138.99,29.49022607]
[1764135611152,103.30526883,139.01,139.0,12.64791601]
[1764135611357,3.16,139.05,139.0,12.64791601]
[1764135611529,3.16,139.05,139.03,8.80994492]
[1764135611932,3.16,139.05,139.03,9.47994492]
[1764135612234,3.16,139.05,139.03,18.28988984]
[1764135612635,3.16,139.05,139.03,25.48255775]
[1764135613054,16.308864,139.06,139.03,25.48255775]
[1764135613253,3.71797109,139.05,139.03,17.61988984]
[1764135613654,19.468864,139.06,139.03,8.80994492]
[1764135613655,6.87797109,139.04,139.03,8.80994492]
[1764135613857,6.87797109,139.04,138.99,9.47994492]
[1764135614062,0.55,139.03,139.0,21.62395934]
[1764135614358,109.63323992,139.04,139.01,8.80994492]
[1764135614359,103.30526883,139.04,139.01,8.80994492]
[1764135614535,103.30526883,139.04,139.01,9.48994492]
[1764135614729,103.30526883,139.04,139.02,7.87320961]
[1764135614932,103.30526883,139.04,139.02,7.19320961]
[1764135616854,103.30526883,139.04,139.02,7.87320961]
[1764135617860,103.30526883,139.04,139.02,29.4940521]
[1764135618555,107.02323992,139.04,139.01,0.68]
[1764135618757,107.02323992,139.04,139.01,7.87370213]
[1764135619146,103.85526883,139.08,139.02,12.65791601]
[1764135619340,6.87797109,139.07,139.02,9.48994492]
[1764135619543,6.87797109,139.07,139.03,7.87254287]
[1764135620142,6.32797109,139.07,139.04,21.61772653]
[1764135620351,6.87797109,139.07,139.04,21.61772653]
[1764135621547,3.16,139.07,139.04,28.80953199]
[1764135621766,3.16,139.07,139.05,0.68]
[1764135622061,3.16,139.07,139.04,10.35977655]
[1764135622269,3.71,139.07,139.05,16.308864]
[1764135623358,3.16,139.07,139.05,16.308864]
[1764135623667,3.16,139.07,139.05,16.988864]
[1764135624451,3.16,139.07,139.05,16.308864]
[1764135624768,6.32797109,139.07,139.05,16.308864]
[1764135625747,3.16,139.07,139.05,16.308864]
[1764135627069,103.30526883,139.06,139.05,16.308864]
[1764135627870,103.30526883,139.06,139.05,16.988864]
[1764135634375,3.16,139.09,139.05,32.99046659]
[1764135634677,6.32797109,139.09,139.06,0.68]
[1764135634875,6.32797109,139.09,139.05,9.48994492]
[1764135634876,3.71797109,139.08,139.05,9.48994492]
[1764135635079,3.71797109,139.08,139.06,21.61461147]
[1764135635375,3.16797109,139.07,139.05,8.80994492]
[1764135636056,3.16797109,139.07,139.05,9.48994492]
[1764135636255,3.16797109,139.07,139.05,31.10455639]
[1764135636455,3.16,139.08,139.05,31.10455639]
[1764135636678,6.32797109,139.08,139.05,9.48994492]
[1764135636881,6.32797109,139.08,139.05,31.10455639]
[1764135637479,6.32797109,139.08,139.05,30.42455639]
[1764135637664,6.32797109,139.08,139.06,0.68]
[1764135638262,6.32797109,139.08,139.06,22.29461147]
[1764135641487,6.32797109,139.08,139.06,21.61461147]
[1764135641668,3.16797109,139.07,139.05,9.48994492]
[1764135641869,3.71797109,139.07,139.05,21.61461147]
[1764135642180,3.71797109,139.06,139.02,0.68]
[1764135642379,106.47323992,139.05,139.03,7.18971075]
[1764135642583,3.16797109,139.04,139.03,7.18971075]
[1764135642779,3.16797109,139.04,138.99,0.68]
[1764135642780,6.87797109,139.04,138.99,0.68]
[1764135642986,3.16797109,139.01,138.99,8.80994492]
[1764135643187,3.16797109,139.01,138.99,12.64994492]
[1764135643686,3.71797109,139.0,138.98,8.80994492]
[1764135643864,0.55,139.0,138.98,19.16501403]
[1764135644061,3.71797109,139.01,138.98,19.16501403]
[1764135644260,3.16797109,139.01,138.98,19.88501403]
[1764135644462,103.30526883,139.03,138.99,0.72]
[1764135644670,3.71797109,139.02,138.98,19.16501403]
[1764135644863,3.71797109,139.02,138.98,19.88501403]
[1764135645584,3.16797109,139.02,138.98,19.88501403]
[1764135645786,0.55,139.01,138.98,19.88501403]
[1764135645985,3.71797109,139.02,138.98,19.16501403]
[1764135646287,3.71797109,139.02,138.99,0.72]
[1764135646462,3.16797109,139.01,138.98,19.16501403]
[1764135646663,3.71797109,139.02,138.99,0.72]
[1764135648588,6.87797109,139.02,138.99,0.72]
[1764135649182,3.71,139.02,138.99,0.72]
[1764135649488,6.87797109,139.02,138.99,0.72]
[1764135649788,0.55,139.01,138.98,19.16501403]
[1764135649985,6.87797109,139.02,138.98,19.88501403]
[1764135650185,3.71797109,139.01,138.98,19.88501403]
[1764135650690,3.16797109,139.0,138.97,3.78547832]
[1764135650874,103.30526883,138.99,138.97,4.50547832]
[1764135651597,103.30526883,138.99,138.97,26.13411463]
[1764135651778,106.47323992,138.99,138.97,3.78547832]
[1764135652096,106.47323992,138.98,138.97,3.78547832]
[1764135652894,103.30526883,138.98,138.97,4.50547832]
[1764135653271,103.30526883,138.98,138.97,3.78547832]
[1764135655176,103.30526883,138.98,138.97,4.50547832]
[1764135655370,103.30526883,138.98,138.97,3.78547832]
[1764135658205,103.30526883,138.98,138.97,4.50547832]
[1764135658398,103.30526883,138.98,138.97,3.78547832]
[1764135658901,103.30526883,138.98,138.97,4.50547832]
[1764135659908,103.30526883,138.98,138.97,11.70127597]
[1764135661291,103.30526883,138.98,138.97,4.50547832]
[1764135665110,2.02826795,138.99,138.97,4.50547832]
[1764135668009,2.57826795,138.98,138.97,3.78547832]
[1764135668888,18.88713195,138.98,138.97,3.78547832]
[1764135670005,22.04713195,138.98,138.97,3.78547832]
[1764135670801,29.24241184,138.98,138.91,8.80994492]
[1764135670995,2.02826795,138.92,138.9,0.91]
[1764135671191,2.02826795,138.91,138.9,0.2]
[1764135675405,2.02826795,138.92,138.9,0.2]
[1764135676413,2.57826795,138.92,138.9,0.2]
[1764135677616,2.02826795,138.92,138.9,0.2]
[1764135678123,108.58826795,138.94,138.91,0.71]
[1764135678423,103.4,138.93,138.91,7.90880711]
[1764135678799,103.4,138.93,138.92,0.71]
[1764135679997,105.42826795,138.93,138.91,0.71]
[1764135682201,2.02826795,138.92,138.9,0.2]
[1764135682409,2.02826795,138.92,138.9,0.91]
[1764135683218,2.02826795,138.92,138.9,0.2]
[1764135683521,103.4,138.91,138.9,0.2]
[1764135684026,103.4,138.91,138.9,0.91]
[1764135684598,103.4,138.91,138.9,0.2]
[1764135684599,105.42826795,138.91,138.9,0.2]
[1764135685205,103.4,138.91,138.9,0.2]
[1764135685504,105.42826795,138.91,138.9,0.2]
[1764135689434,2.02826795,138.91,138.9,0.91]
[1764135689724,5.18826795,138.92,138.9,0.91]
[1764135690030,5.18826795,138.92,138.91,0.71]
[1764135690709,18.33713195,138.92,138.91,0.71]
[1764135690915,18.33713195,138.92,138.9,0.2]
[1764135691117,18.33713195,138.92,138.9,0.91]
[1764135692535,2.02826795,138.91,138.9,0.91]
[1764135694024,2.02826795,138.91,138.9,0.2]
[1764135695525,2.02826795,138.91,138.9,0.91]
[1764135696024,2.02826795,138.91,138.9,0.2]
[1764135696619,18.33713195,138.91,138.9,0.2]
[1764135697331,18.33713195,138.91,138.9,0.91]
[1764135697837,18.33713195,138.91,138.9,0.2]
[1764135698415,18.33713195,138.91,138.9,0.91]
[1764135700137,18.33713195,138.91,138.9,0.2]
[1764135700322,5.18826795,138.91,138.9,0.2]
[1764135700526,5.73826795,138.91,138.9,0.2]
[1764135702323,5.18826795,138.91,138.9,0.2]
[1764135702827,3.16,138.91,138.9,0.2]
[1764135703019,19.468864,138.91,138.9,0.2]
[1764135704352,3.16,138.91,138.9,0.88]
[1764135705955,16.308864,138.95,138.9,10.10742759]
[1764135706146,3.16,138.95,138.91,2.70826795]
[1764135706451,3.16,138.95,138.92,0.68]
[1764135708741,5.18826795,138.95,138.92,0.68]
[1764135709956,2.02826795,138.94,138.92,0.68]
[1764135710255,103.4,138.93,138.92,0.68]
[1764135716165,16.308864,138.93,138.92,0.68]
[1764135722468,7.19888526,138.98,138.92,11.04943709]
[1764135722772,23.18991353,138.98,138.93,12.66099445]
[1764135722946,22.63991353,138.98,138.93,12.66099445]
[1764135723146,23.18991353,138.98,138.94,0.68]
[1764135723564,6.88104953,138.98,138.94,0.68]
[1764135724462,16.308864,138.97,138.94,0.68]
[1764135726268,0.55,138.96,138.93,20.77988984]
[1764135726441,6.33104953,138.95,138.92,7.87819271]
[1764135726843,6.33104953,138.95,138.93,0.68]
[1764135727044,3.16,138.95,138.93,0.68]
[1764135731072,103.4,138.94,138.93,0.68]
[1764135732373,103.4,138.94,138.92,0.68]
[1764135734094,103.4,138.94,138.92,11.04927855]
[1764135734473,103.4,138.94,138.93,0.7]
[1764135735874,103.4,138.94,138.93,3.87104953]
[1764135736564,103.4,138.94,138.93,0.7]
[1764135737082,19.468864,138.95,138.93,0.7]
[1764135738854,3.16,138.95,138.93,0.7]
[1764135740689,3.16,138.95,138.93,11.06884381]
[1764135741188,3.16,138.95,138.94,0.7]
[1764135741779,16.308864,138.95,138.94,0.7]
[1764135745659,16.308864,138.95,138.93,3.17104953]
[1764135745872,16.308864,138.95,138.92,11.06940809]
[1764135746885,16.308864,138.95,138.93,0.7]
[1764135748872,103.4,138.94,138.93,0.7]
[1764135752191,103.4,138.94,138.93,11.06891896]
[1764135753283,103.4,138.94,138.93,0.7]
[1764135759493,103.4,138.94,138.93,11.06891896]
[1764135761621,103.4,138.94,138.93,3.87104953]
[1764135762602,103.4,138.94,138.92,6.33104953]
[1764135762783,103.4,138.94,138.91,3.87104953]
[1764135762975,103.95,138.94,138.91,3.87104953]
[1764135763176,103.4,138.94,138.91,3.87104953]
[1764135763484,103.4,138.94,138.92,0.7]
[1764135763793,103.4,138.94,138.92,3.87104953]
[1764135764101,0.55,138.93,138.9,0.2]
[1764135764420,103.4,138.92,138.9,0.2]
[1764135764585,103.4,138.91,138.9,16.00099445]
[1764135765104,103.4,138.91,138.9,23.20041849]
[1764135771425,3.17104953,139.0,138.91,25.11880892]
[1764135771426,102.68,138.96,138.91,25.11880892]
[1764135771644,102.68,138.96,138.95,11.98099445]
[1764135772008,102.68,138.96,138.95,12.64099445]
[1764135772823,102.68,138.96,138.95,8.80994492]
[1764135773030,102.68,138.96,138.95,11.98099445]
[1764135773553,102.68,138.96,138.95,10.36788292]
[1764135774216,102.68,138.96,138.95,7.19683339]
[1764135775044,102.68,138.96,138.94,13.52831787]
[1764135775347,103.35,138.96,138.94,13.52831787]
[1764135776839,103.35,138.96,138.94,10.36831787]
[1764135777237,103.35,138.96,138.94,11.02831787]
[1764135777442,103.35,138.96,138.94,10.36831787]
[1764135778940,103.35,138.96,138.94,11.02831787]
[1764135780747,103.35,138.96,138.94,9.88566734]
[1764135784150,103.35,138.96,138.94,9.22566734]
[1764135784618,103.35,138.96,138.94,9.92566734]
[1764135785847,103.35,138.96,138.94,9.22566734]
[1764135787342,103.35,138.96,138.94,9.92566734]
[1764135787947,102.68,138.96,138.93,8.80994492]
[1764135788158,5.878399,138.95,138.91,7.19867996]
[1764135788322,108.558399,138.95,138.91,7.19867996]
[1764135788535,0.69,138.94,138.91,7.19867996]
[1764135788739,103.37,138.94,138.91,7.19867996]
[1764135789139,0.69,138.93,138.91,7.19867996]
[1764135789339,102.68,138.94,138.91,9.92707896]
[1764135789539,102.68,138.94,138.92,2.728399]
[1764135790051,102.68,138.94,138.92,9.92647309]
[1764135790867,102.68,138.94,138.93,2.728399]
[1764135793035,102.68,138.94,138.93,9.92626843]
[1764135794958,102.68,138.94,138.93,7.89786943]
[1764135795754,102.68,138.94,138.92,8.80994492]
[1764135795933,102.68,138.94,138.93,0.71]
[1764135796358,102.68,138.94,138.93,11.54834392]
[1764135796663,102.68,138.94,138.93,14.70834392]
[1764135797956,102.68,138.94,138.93,21.90621335]
[1764135798668,102.68,138.94,138.93,19.87781435]
[1764135798960,102.68,138.94,138.93,21.90621335]
[1764135799658,0.67,138.98,138.94,8.80994492]
[1764135799848,0.67,138.99,138.96,2.028399]
[1764135800040,0.67,138.99,138.96,9.22442774]
[1764135800532,0.67,138.99,138.97,2.028399]
[1764135800730,0.67,138.99,138.96,9.93442774]
[1764135801739,0.67,138.99,138.97,2.028399]
[1764135801943,102.68,139.0,138.98,10.83834392]
[1764135802134,102.68,139.0,138.98,8.80994492]
[1764135802337,103.35,139.0,138.98,8.80994492]
[1764135803558,102.68,139.0,138.98,16.00507292]
[1764135803739,103.35,139.0,138.98,16.00507292]
[1764135805044,102.68,139.0,138.97,3.87]
[1764135805248,2.698399,138.99,138.95,7.19662931]
[1764135805452,2.028399,138.98,138.94,19.87729629]
[1764135805656,2.698399,138.98,138.94,19.87729629]
[1764135805839,2.028399,138.98,138.94,19.87729629]
[1764135806043,0.67,138.97,138.94,19.87729629]
[1764135807465,0.67,138.97,138.94,21.90569529]
[1764135811257,102.68,138.96,138.95,7.90683339]
[1764135811463,102.68,138.96,138.95,18.74517731]
[1764135814477,102.68,138.96,138.95,16.71677831]
[1764135814651,102.68,138.96,138.95,18.74517731]
[1764135815147,0.67,139.01,138.96,8.80994492]
[1764135815344,0.67,139.01,138.99,8.80994492]
[1764135817678,0.67,139.01,138.99,16.00470525]
[1764135821176,0.67,139.01,138.99,8.80994492]
[1764135826573,0.67,139.01,138.99,9.46994492]
[1764135827581,0.67,139.01,138.99,8.80994492]
[1764135828470,2.698399,139.01,138.98,7.19521876]
[1764135828975,0.7,139.0,138.98,7.19521876]
[1764135829777,0.7,139.0,138.98,7.85521876]
[1764135831085,2.728399,139.01,138.98,7.85521876]
[1764135831580,2.028399,139.01,138.98,7.85521876]
[1764135831759,2.728399,139.01,138.98,7.85521876]
[1764135831964,102.68,139.0,138.98,7.85521876]
[1764135833373,103.38,139.0,138.98,7.85521876]
[1764135833573,102.68,139.0,138.98,7.85521876]
[1764135833981,103.38,139.0,138.98,7.85521876]
[1764135837578,102.68,139.0,138.99,0.66]
[1764135837890,103.38,139.0,138.98,7.19521876]
[1764135838486,103.38,139.0,138.98,7.85521876]
[1764135838984,102.68,139.0,138.99,9.46994492]
[1764135839778,102.68,139.0,138.99,8.80994492]
[1764135841066,102.68,139.0,138.99,16.00470713]
[1764135841272,103.38,139.0,138.99,16.00470713]
[1764135841686,102.68,139.0,138.99,16.69470713]
[1764135846193,102.68,139.0,138.99,16.00470713]
[1764135846894,102.68,139.0,138.99,16.69470713]
[1764135852582,102.68,139.0,138.99,16.00470713]
[1764135853000,103.36,139.0,138.99,16.00470713]
[1764135857407,102.68,139.0,138.99,16.00470713]
[1764135857605,103.35,139.0,138.97,42.77289084]
[1764135857907,103.35,139.0,138.98,7.19508382]
[1764135858694,106.51774332,139.0,138.98,7.19508382]
[1764135859215,0.67,138.99,138.98,16.00502874]
[1764135859526,106.51774332,139.0,138.98,16.00502874]
[1764135860227,0.67,138.99,138.98,16.00502874]
[1764135860724,106.51774332,139.0,138.98,16.00502874]
[1764135861205,0.67,138.99,138.98,16.00502874]
[1764135862008,106.51774332,139.0,138.98,16.00502874]
[1764135863024,0.67,139.02,138.99,9.46994492]
[1764135863233,3.83774332,139.02,138.99,9.46994492]
[1764135863712,3.83774332,139.02,139.0,0.66]
[1764135864129,0.67,139.02,139.0,0.66]
[1764135864413,106.51774332,139.03,139.0,0.66]
[1764135865125,105.84774332,139.03,139.01,7.19372706]
[1764135865425,106.51774332,139.03,139.01,7.19372706]
[1764135865920,105.84774332,139.03,139.01,7.19372706]
[1764135866121,0.67,139.02,139.01,7.19372706]
[1764135866522,0.67,139.02,139.0,7.85408903]
[1764135871242,0.67,139.02,138.99,33.59234572]
[1764135871243,3.83774332,139.02,138.99,40.78695234]
[1764135871520,3.16774332,139.01,138.99,19.16455154]
[1764135871728,3.83774332,139.01,138.99,19.16455154]
[1764135872126,0.67,139.01,138.99,19.16455154]
[1764135872312,3.83774332,139.02,138.99,19.82455154]
[1764135872727,0.67,139.02,138.99,41.44695234]
[1764135873429,0.67,139.02,139.0,0.66]
[1764135875111,0.67,139.02,139.0,7.85381285]
[1764135876433,3.83774332,139.02,139.0,7.19381285]
[1764135876929,0.67,139.01,139.0,16.00375777]
[1764135878716,102.68,139.03,139.0,16.00375777]
[1764135879019,0.67,139.02,139.0,16.00375777]
[1764135879933,3.83774332,139.02,139.0,16.00375777]
[1764135880933,3.83774332,139.02,139.0,16.66375777]
[1764135881605,3.83774332,139.01,138.98,21.6224008]
[1764135881805,3.16774332,138.99,138.98,21.6224008]
[1764135882227,3.83774332,138.99,138.93,14.11884352]
[1764135882429,3.16774332,138.97,138.94,9.46994492]
[1764135882811,3.83774332,138.97,138.94,9.46994492]
[1764135883017,0.67,138.96,138.94,8.80994492]
[1764135883510,0.67,138.97,138.94,9.46994492]
[1764135884937,0.67,138.97,138.94,16.00680587]
[1764135886245,0.67,138.97,138.94,16.71680587]
[1764135888341,103.35,138.97,138.94,16.71680587]
[1764135888537,102.68,138.97,138.94,16.00680587]
[1764135888717,102.68,138.97,138.95,3.87774332]
[1764135889136,102.68,138.97,138.96,0.71]
[1764135889421,102.68,138.97,138.95,0.71]
[1764135889639,102.68,138.97,138.96,9.51994492]
[1764135890516,102.68,138.97,138.96,16.0062604]
[1764135890714,102.68,138.97,138.96,16.7162604]
[1764135892338,102.68,138.97,138.96,16.0062604]
[1764135892526,102.68,138.97,138.96,16.7162604]
[1764135893151,103.37,138.97,138.96,16.0062604]
[1764135893354,103.37,138.97,138.96,8.80994492]
[1764135893534,103.37,138.97,138.95,7.19669266]
[1764135894262,102.68,138.96,138.95,7.19669266]
[1764135895940,102.68,138.96,138.95,12.68768824]
[1764135896140,102.68,138.96,138.95,15.84768824]
[1764135896648,102.68,138.96,138.95,37.47320635]
[1764135898135,102.68,138.96,138.95,44.67003974]
[1764135900354,102.68,139.0,138.96,8.80994492]
[1764135900656,103.37,139.0,138.98,8.80994492]
[1764135904969,0.69,138.99,138.97,7.19579765]
[1764135907065,2.02803358,138.98,138.96,7.19609843]
[1764135907565,0.72,138.97,138.96,7.19609843]
[1764135907752,103.4,138.97,138.96,7.19609843]
[1764135908161,105.42803358,138.97,138.95,7.19674558]
[1764135908354,0.72,138.96,138.95,16.0066905]
[1764135911172,103.4,138.97,138.95,16.0066905]
[1764135912972,0.72,138.96,138.95,16.0066905]
[1764135914472,103.36,138.97,138.95,16.0066905]
[1764135914665,0.68,138.96,138.95,16.0066905]
[1764135914859,103.36,138.97,138.95,16.0066905]
[1764135915591,103.36,138.97,138.95,8.80994492]
[1764135915783,0.68,138.96,138.95,8.80994492]
[1764135916377,102.68,138.97,138.95,16.00677831]
[1764135916579,103.36,138.97,138.95,16.00677831]
[1764135917176,0.68,138.96,138.95,16.00677831]
[1764135917382,103.36,138.97,138.95,16.00677831]
[1764135918682,0.68,138.96,138.95,16.00677831]
[1764135919381,0.68,138.96,138.95,8.80994492]
[1764135920183,0.68,138.96,138.95,16.00677831]
[1764135923281,0.68,138.96,138.95,8.80994492]
[1764135923890,102.68,138.97,138.95,8.80994492]
[1764135924189,103.36,138.97,138.95,16.00672152]
[1764135925178,0.68,138.96,138.95,16.00672152]
[1764135925788,0.68,138.96,138.94,7.89723929]
[1764135927766,2.70803358,138.96,138.93,16.00769744]
[1764135927974,102.68,138.95,138.93,16.00769744]